Cogmind - Beta 9 @@@ ROGUE MODE // 2019.10.23 @ 02:04:42 // Halloween2019/Abominations Player: Nikolayag Result: Destroyed by Lesser Abomination with Grenade Launcher Performance ------------- Evolutions (0) 0 Regions Visited (1) 200 Robots Destroyed (3) 15 Value Destroyed (126) 126 Prototype IDs (0) 0 Alien Tech Used (0) 0 Bonus (0) 0 TOTAL SCORE: 341 Bonus ------- None Cogmind --------- Core Integrity 0/250 Matter 235/300 Energy 99/100 System Corruption 0% Temperature Cool (0) Location -10/Materials Parts ------- Power (1) Propulsion (2) Utility (2) Weapon (2) Inventory (4) Light Ion Engine Wheel Peak State ------------ Power Light Ion Engine Propulsion Wheel Wheel Utility Small Storage Unit Weapon Medium Laser Medium Laser Inventory Ion Engine Light Treads Light Treads [Rating: 6] Favorites ----------- Power Light Ion Engine Engine Light Ion Engine Propulsion Wheel Treads Light Treads Wheel Wheel Utility Small Storage Unit Storage Small Storage Unit Weapon Medium Laser Energy Gun Medium Laser Ballistic Gun Light Assault Rifle Build | -11 -10 ------- Run | Scr Mat Slots Evolved . | . . Power . | . . Propulsion . | . . Utility . | . . Weapon . | . . Parts Attached 11 | 6 5 Power 2 | 1 1 Engine 2 | 1 1 Core . | . . Reactor . | . . Propulsion 4 | 2 2 Treads 2 | . 2 Leg . | . . Wheel 2 | 2 . Hover . | . . Flight . | . . Utility 1 | 1 . Device . | . . Storage 1 | 1 . Processor . | . . Hackware . | . . Protection . | . . Artifact . | . . Weapon 4 | 2 2 Energy Gun 3 | 2 1 Energy Cannon . | . . Ballistic Gun 1 | . 1 Ballistic Cannon . | . . Launcher . | . . Special Weapon . | . . Impact Weapon . | . . Slashing Weapon . | . . Piercing Weapon . | . . Special Melee Weapon . | . . Unidentified Prototypes . | . . Parts Lost 7 | . 7 Power 1 | . 1 Propulsion 2 | . 2 Utility . | . . Weapon 4 | . 4 Highest Loss Streak 6 | . 6 Average Slot Usage (%) 70 | . 70 Engine 11 | . 11 Treads 3 | . 3 Wheel 21 | . 21 Storage 12 | . 12 Energy Gun 21 | . 21 Naked Turns 16 | . 16 Heaviest Build 11 | 11 11 Greatest Support 20 | 20 20 Greatest Overweight (x) . | . . Average Overweight (x) . | . . Largest Inventory Capacity 6 | 6 6 Average Capacity 5 | 5 5 Most Carried 6 | 4 6 Average Carried 4 | 2 4 Final Capacity 4 | . 4 Final Carried 2 | . 2 Class Distribution -------------------- 100% | Mutant Dominant Class ---------------- Mutant | -10/Materials Resources | -11 -10 ----------- Run | Scr Mat Matter Collected 210 | 84 126 Remotely . | . . Salvage Created 203 | 84 119 Parts 4 | . 4 Haulers Intercepted . | . . Recyclers Shooed . | . . Parts Field Recycled . | . . Retrieved Matter . | . . Parts Self-Destructed . | . . Prevented . | . . Kills | -11 -10 ------- Run | Scr Mat Combat Hostiles Destroyed 2 | . 2 Guns 2 | . 2 Classes Destroyed 2 | 1 1 Recycler 1 | 1 . Abomination 2 | . 2 Best Kill Streak 1 | 1 1 Combat Bots Only 1 | . 1 Max Kills in Single Turn 1 | 1 1 Gunslinging . | . . Exploded . | . . Melee . | . . Uniques/NPCs Destroyed . | . . Combat | -11 -10 -------- Run | Scr Mat Damage Taken 860 | . 860 Core 260 | . 260 Absorbed by Shields . | . . Core Remaining (%) 100 | 100 . Volleys Fired 15 | 3 12 Largest 2 | 2 2 Hottest 100 | 100 100 Shots Fired 28 | 6 22 Gun 28 | 6 22 Cannon . | . . Launcher . | . . Special . | . . Kinetic 2 | . 2 Thermal 26 | 6 20 Explosive . | . . Electromagnetic . | . . Robot Hit Streak 16 | 3 16 Robot Miss Streak 2 | 2 1 Penetration Max . | . . Secondary Targets . | . . Shots Hit Robots 21 | 3 18 Core Hits 8 | 2 6 Critical Hits . | . . Critical Kills . | . . Critical Parts Destroyed . | . . Melee Attacks . | . . Impact . | . . Slashing . | . . Piercing . | . . Sneak Attacks . | . . Combat Hostiles . | . . Follow-up Attacks . | . . Damage Inflicted 288 | 39 249 Guns 286 | 39 247 Cannons . | . . Explosions . | . . Melee . | . . Ramming 2 | . 2 Kinetic 16 | . 16 Thermal 270 | 39 231 Explosive . | . . Electromagnetic . | . . Impact . | . . Slashing . | . . Piercing . | . . Highest Corruption . | . . Average Corruption . | . . Corruption Purged . | . . Overload Shots . | . . Overflow Damage . | . . Projectiles . | . . Explosions . | . . Melee . | . . Knockbacks . | . . Impact . | . . Kinetic . | . . Secondary . | . . Self-Inflicted Damage 1 | . 1 Shots . | . . Rammed 1 | . 1 Targets Rammed 1 | . 1 Kicked . | . . Crushed . | . . Highest Temperature 215 | 117 215 Average Temperature 82 | 62 88 Received Heat Transfer 102 | . 102 Siege Activations . | . . Robots Corrupted . | . . Combat Hostiles . | . . Parts Fried . | . . Impact Corruptions . | . . Robots Melted . | . . Combat Hostiles . | . . Parts Melted . | . . Heat Transferred 246 | 111 135 Parts Sabotaged . | . . Parts Stolen . | . . Parts Stripped . | . . Power Chain Reactions . | . . Missiles Intercepted . | . . Alert | -11 -10 ------- Run | Scr Mat Peak Influence 61 | 5 61 Average Influence 33 | 1 43 Maximum Alert Level . | . . Low Security (%) 100 | . . Level 1 . | . . Level 2 . | . . Level 3 . | . . Level 4 . | . . Level 5 . | . . High Security . | . . Max Security . | . . Squads Dispatched 1 | . 1 Investigation . | . . Extermination . | . . Reinforcement 1 | . 1 Assault . | . . Garrison . | . . Intercept . | . . Construction Impeded . | . . Haulers Reinforced . | . . Stealth | -11 -10 --------- Run | Scr Mat Distress Signals . | . . Communications Jammed . | . . Distress Signals . | . . Times Spotted 8 | . 8 Peak Tracking Total 6 | . 6 Tactical Retreats 1 | . 1 Traps | -11 -10 ------- Run | Scr Mat Traps Triggered . | . . Indirectly . | . . Trap Hack Attempts . | . . Triggered . | . . Disarmed . | . . Reprogrammed . | . . Reused . | . . Traps Extracted . | . . Installed . | . . Triggered . | . . Machines | -11 -10 ---------- Run | Scr Mat Machines Disabled . | . . Max in Single Turn . | . . Machines Sabotaged . | . . Garrisons Compromised . | . . Overloaded Fab Kills . | . . Fab Network Shutdowns . | . . Hacking | -11 -10 --------- Run | Scr Mat Machines Accessed 3 | . 3 Terminals 2 | . 2 Fabricators . | . . Repair Stations . | . . Recycling Units 1 | . 1 Scanalyzers . | . . Garrison Access . | . . Total Hacks 7 | . 7 Successful 4 | . 4 Failed 3 | . 3 Catastrophic . | . . Database Lockouts . | . . Manual 5 | . 5 Terminals 5 | . 5 Fabricators . | . . Repair Stations . | . . Recycling Units 2 | . 2 Scanalyzers . | . . Garrison Access . | . . Terminal Hacks . | . . Fabricator Hacks . | . . Repair Station Hacks . | . . Recycling Unit Hacks 1 | . 1 Retrieve Components 1 | . 1 Scanalyzer . | . . Garrison Access Hacks . | . . Unauthorized Hacks 8 | . 8 Terminals 3 | . 3 Botnet 2 | . 2 Operators 1 | . 1 Fabricators . | . . Repair Stations . | . . Recycling Units . | . . Scanalyzers . | . . Garrison Access . | . . Data Cores Recovered . | . . Used . | . . Hacking Detections 3 | . 3 Full Trace Events 1 | . 1 Feedback Events . | . . Feedback Blocked . | . . Robot Schematics Acquired . | . . Robots Built . | . . Matter . | . . Time . | . . Total Robot Build Rating . | . . Part Schematics Acquired . | . . Parts Built . | . . Matter . | . . Time . | . . Total Part Build Rating . | . . Parts Repaired . | . . Time . | . . Parts Recycled . | . . Recycled Matter . | . . Retrieved Matter . | . . Retrieved Components . | . . Parts Scanalyzed . | . . Part Schematics Acquired . | . . Parts Damaged . | . . Bothacking | -11 -10 ------------ Run | Scr Mat Used RIF Installer . | . . Robots Hacked . | . . Non-combat . | . . Combat . | . . Robot Hacks Applied . | . . Relay Couplers Released . | . . Robots Rewired . | . . Allies Hacked . | . . Hacks Repelled . | . . Allies | -11 -10 -------- Run | Scr Mat Total Allies . | . . Largest Group . | . . Highest-Rated Group . | . . Highest-Rated Ally . | . . Total Orders . | . . Ally Attacks . | . . Total Damage . | . . Kills . | . . Allies Corrupted . | . . Allies Melted . | . . Intel | -11 -10 ------- Run | Scr Mat Robot Analysis Total . | . . Derelict Logs Recovered . | . . Drone Launches . | . . Drone Recoveries . | . . Exploration | -11 -10 ------------- Run | Scr Mat Turns Passed 230 | 56 174 Spaces Moved 198 | 42 156 Core 33 | 3 30 Treads . | . . Legs . | . . Wheels 165 | 39 126 Hover . | . . Flight . | . . Fastest Speed 50 | 50 50 Average Speed 75 | 77 74 Slowest Speed 80 | 80 80 Overloaded Moves . | . . Propulsion Burnouts . | . . Robots Hopped . | . . Cave-ins Triggered . | . . Exploration Rate (%) 20 | 3 37 Regions Visited 1 Branch Regions . Pre-discovered Areas . | . . Known Exits Taken . | . . Unknown Exits Taken 1 | 1 . Scrap Searched . | . . Spaces Dug . | . . Terrain Destroyed . | . . Melee . | . . Projectile . | . . AOE . | . . Actions | -11 -10 --------- Run | Scr Mat Total 248 | 56 192 Wait 17 | 1 16 Move 197 | 41 156 Hop . | . . Pick Up 7 | 5 2 Fast Attach 5 | 5 . Attach 5 | 1 4 Detach . | . . Swap 1 | . 1 Drop . | . . Fire 15 | 3 12 Melee . | . . Ram 1 | . 1 Kick . | . . Crush . | . . Escape Stasis . | . . Rewire . | . . Trap . | . . Miscellaneous . | . . Route ------- -11/Scrapyard -10/Materials (discovered 1 exit: [*Mat]) History --------- Turn | Location | Event 17 | -11/Scrapyard | Discovered new exit (range 16) 57 | -11/Scrapyard | Entered Materials 121 | -10/Materials | Discovered new exit (range 13) 215 | -10/Materials | Released all parts (3) 217 | -10/Materials | Core integrity fell below 50% 231 | -10/Materials | Destroyed by Lesser Abomination with Grenade Launcher Last Messages --------------- 00209_ Med. Laser destroyed. 00214_ Lgt. Treads destroyed. 00215_ Unstable Anomaly suddenly flashes brightly. 00215_ Engulfed by violent ripples tearing at the fabric of space. 00215_ Lgt. Assault Rifle destroyed. 00215_ Released Sml. Storage Unit. 00215_ Released Ion Engine. 00215_ Released Lgt. Treads. 00216_ Lesser Abomination absorbs Ion Engine. 00216_ Engulfed by violent ripples tearing at the fabric of space. 00217_ Lesser Abomination sheds Resonating Anomaly. 00217_ Slammed into Resonating Anomaly. 00223_ Acquired 40 matter. 00224_ Terminal unresponsive. 00224_ Acquired 37 matter. 00226_ Acquired 36 matter. 00227_ Unstable Anomaly suddenly flashes brightly. 00229_ Acquired 13 matter. 00231_ Unstable Anomaly suddenly flashes brightly. 00231_ Engulfed by violent ripples tearing at the fabric of space. Map ----- +----------------------------------------------------+ | # # #?#####+#####????????# #?? | | # """ # ##### %#???????????# #?? | | # """ + %########????# #?? | | # """ # ###### ### | | # ##+##+## ##% | | # """## ####### | | # Y"## "T" #?????# | | # """## %/ #?????# ###### | | # #?????## ##????# | | ##### # #??????# #?????# | | ????# ######## #?????# | | ???## # # #?????# | | ???# # [ # #?????# | | ???## # # % # #?????+ | | ???# ### % # #?????# | | ???# # [ # #?????? | | ???## # # "" # ????? | | ???# ## # """ #% ????? | | ???# ## # """" +% ????] ?? | | ???# # # """" " ?????????? | | ???##### #% """ "% % "????????? | | ????# # #####""""%% |% "????????? | | ????# ## = # ###### A %"????????? | | ????### %* n % % % %"????????? | | ??????# A= % % % % "????????? | | ??????# @ n % ????????? | | ??????######## #### % ????????? | | ????????######;#####?????????????????? | | ????????# % %%##?????????????????? | | ????????# #??????????????????? | | ????????# #??????????????????? | | ????????# % %#??????????????????? | | ????????# #??????????????????? | | ????????# #??????????????????? | | ????????# % #??????????????????? | | ????????# #??????????????????? | | ????????#####/#####??????????????????? | | ?????# ####% #?????????????????????? | | ?????# %" ######% %""##???????? | | ?????# %% %"T %% % % % " ???????? | | ?????##%### #########?????????????? | | ??????#???## ##?????????????????????? | | ???????????# #??????????????????????? | | ???????????# #??????????????????????? | | ???????????# #??????????????????????? | | ??#####+???# #??????????????????????? | | ??# %=???# #??????????????????????? | | ??# % ??# ##########?????????????? | | ??# ??# # #?????????????? | | ??# % ?# # "" #?????????????? | +----------------------------------------------------+ Best States ------------- Heat Dissipation 25 Energy Generation 10 Energy Capacity 125 Matter Stores 235 Matter Capacity 300 Sight Range 16 Terrain Scan Density 10 Evasion (%) 50 Recoil Reduction 1 Item Schematics ----------------- None Robot Schematics ------------------ None Fabricated ------------ Nothing Alien Tech Used ----------------- None Achievements -------------- None Challenges ------------ None Game ------ Seed XenonDisposableApparatus Manual? 0 Play Time 00:05:13 Cumulative 158.3 hours Start 2019.10.23 @ 01:58:58 End 2019.10.23 @ 02:04:42 Sessions 1 Manual Loads 0 Difficulty Rogue Special Mode Halloween2019/Abominations Game No. 164 Rogue 164 Adventurer 0 Explorer 0 Win Type - Total 3 Types 3/0/0/0/0/0/0 Lore% 48 Gallery% 67 Achievement% 42 Wizard Run 0 Options --------- ASCII 0 Keyboard 1 Movement Numpad Keybinds 0 Fullscreen 1 Font 18/SmallcapsGlow Map View 76x50 Tactical HUD 1 Map Filters NONE Filters NONE Steam 1 RUN: 6ed23592-2c78-4a95-a728-6e36daf62ce4